[Event "*** Titled Tuesday Blitz"]
[Site "Chess.com"]
[Date "2020.11.10"]
[Round "11"]
[White "xberli"]
[Black "Sofiia_Hryzlova"]
[Result "1-0"]
[WhiteElo "2535"]
[BlackElo "2325"]
[TimeControl "180+1"]
[EndTime "12:13:59 PST"]
[Termination "xberli won by resignation"]

1. d4 {[%clk 0:03:00.9]} 1... Nf6 {[%clk 0:02:58.2]} 2. c4 {[%clk 0:02:56.7]}
2... e6 {[%clk 0:02:58]} 3. Nc3 {[%clk 0:02:56.3]} 3... Bb4 {[%clk 0:02:57.6]}
4. Nf3 {[%clk 0:02:55.8]} 4... O-O {[%clk 0:02:54.6]} 5. e3 {[%clk 0:02:55.5]}
5... b6 {[%clk 0:02:50.1]} 6. Bd3 {[%clk 0:02:54.8]} 6... Bxc3+ {[%clk 0:02:50]}
7. bxc3 {[%clk 0:02:55.7]} 7... Bb7 {[%clk 0:02:50.5]} 8. O-O {[%clk 0:02:56]}
8... d6 {[%clk 0:02:50.9]} 9. a4 {[%clk 0:02:54]} 9... a5 {[%clk 0:02:47.2]} 10.
Re1 {[%clk 0:02:52.9]} 10... Ne4 {[%clk 0:02:44.9]} 11. Qc2 {[%clk 0:02:50.5]}
11... f5 {[%clk 0:02:44.1]} 12. c5 {[%clk 0:02:39.9]} 12... dxc5 {[%clk
0:02:35.3]} 13. Ba3 {[%clk 0:02:33.6]} 13... Nd7 {[%clk 0:02:30.1]} 14. Rad1
{[%clk 0:02:31.5]} 14... Qe7 {[%clk 0:02:25.9]} 15. Nd2 {[%clk 0:02:22.5]} 15...
Nd6 {[%clk 0:02:17.3]} 16. Bf1 {[%clk 0:02:10.5]} 16... cxd4 {[%clk 0:02:09.6]}
17. exd4 {[%clk 0:02:08.4]} 17... Nf6 {[%clk 0:02:07.8]} 18. Nc4 {[%clk
0:02:00.1]} 18... Nfe4 {[%clk 0:01:48.3]} 19. f3 {[%clk 0:01:51.1]} 19... Ng5
{[%clk 0:01:47.5]} 20. d5 {[%clk 0:01:31.5]} 20... e5 {[%clk 0:01:28.3]} 21.
Nxe5 {[%clk 0:01:23.7]} 21... Qd8 {[%clk 0:01:14.6]} 22. c4 {[%clk 0:01:21.6]}
22... Rf6 {[%clk 0:01:11.3]} 23. Bb2 {[%clk 0:01:18.3]} 23... Rh6 {[%clk
0:01:07.5]} 24. Qf2 {[%clk 0:01:09.8]} 24... Ndf7 {[%clk 0:00:57]} 25. Qg3
{[%clk 0:01:00.1]} 25... Nxe5 {[%clk 0:00:49.2]} 26. Rxe5 {[%clk 0:00:58.7]}
26... Rg6 {[%clk 0:00:47.4]} 27. Re2 {[%clk 0:00:36.3]} 27... f4 {[%clk
0:00:43.2]} 28. Qg4 {[%clk 0:00:27.7]} 28... Bc8 {[%clk 0:00:40.4]} 29. Qh5
{[%clk 0:00:23.9]} 29... Bd7 {[%clk 0:00:28.1]} 30. h4 {[%clk 0:00:18.4]} 30...
Nh3+ {[%clk 0:00:25.5]} 31. Kh2 {[%clk 0:00:17.8]} 31... Rh6 {[%clk 0:00:24.4]}
32. Qe5 {[%clk 0:00:16.6]} 32... Rg6 {[%clk 0:00:14.1]} 33. Qe7 {[%clk
0:00:10.8]} 33... Bxa4 {[%clk 0:00:06.8]} 34. Qxd8+ {[%clk 0:00:10.3]} 34...
Rxd8 {[%clk 0:00:06.7]} 35. Rde1 {[%clk 0:00:10.7]} 35... Ng5 {[%clk 0:00:04.7]}
36. hxg5 {[%clk 0:00:10.6]} 36... Rxg5 {[%clk 0:00:05.6]} 37. Re7 {[%clk
0:00:10.6]} 37... Kf8 {[%clk 0:00:05]} 38. Kg1 {[%clk 0:00:10.9]} 38... Rc8
{[%clk 0:00:04.1]} 39. Bd3 {[%clk 0:00:10]} 39... Bb3 {[%clk 0:00:04]} 40. R7e5
{[%clk 0:00:10]} 40... Rxe5 {[%clk 0:00:03.9]} 41. Rxe5 {[%clk 0:00:10.9]} 41...
a4 {[%clk 0:00:04.7]} 42. Ba3+ {[%clk 0:00:11]} 42... Kg8 {[%clk 0:00:04.2]} 43.
Bf5 {[%clk 0:00:11.7]} 43... g6 {[%clk 0:00:04.7]} 44. Bxc8 {[%clk 0:00:11.5]}
44... Bxc4 {[%clk 0:00:04.9]} 45. Be6+ {[%clk 0:00:12.4]} 45... Kg7 {[%clk
0:00:04.1]} 46. d6 {[%clk 0:00:13]} 46... Kf6 {[%clk 0:00:04.6]} 47. Bxc4 {[%clk
0:00:12.8]} 47... cxd6 {[%clk 0:00:05.5]} 48. Re6+ {[%clk 0:00:12.2]} 48... Kf5
{[%clk 0:00:05.2]} 49. Rxd6 {[%clk 0:00:13.1]} 49... b5 {[%clk 0:00:05.7]} 50.
Rb6 {[%clk 0:00:14]} 50... g5 {[%clk 0:00:06.1]} 51. Rxb5+ {[%clk 0:00:14.1]}
51... Kg6 {[%clk 0:00:05.6]} 52. Rb4 {[%clk 0:00:15]} 52... Kh5 {[%clk
0:00:06.5]} 53. Rxa4 {[%clk 0:00:15.9]} 53... h6 {[%clk 0:00:06.8]} 54. Ra6
{[%clk 0:00:16.4]} 54... Kh4 {[%clk 0:00:07.7]} 55. Be6 {[%clk 0:00:16.5]} 55...
h5 {[%clk 0:00:08.6]} 56. Rd6 {[%clk 0:00:16.8]} 56... g4 {[%clk 0:00:09.5]} 57.
Rd4 {[%clk 0:00:17.4]} 57... Kg3 {[%clk 0:00:10.2]} 58. Rxf4 {[%clk 0:00:18.3]}
58... Kxf4 {[%clk 0:00:09.3]} 59. fxg4 {[%clk 0:00:19.2]} 59... hxg4 {[%clk
0:00:09.1]} 60. Bxg4 {[%clk 0:00:20.1]} 60... Kxg4 {[%clk 0:00:09.1]} 61. Bc1
{[%clk 0:00:21]} 61... Kg3 {[%clk 0:00:10]} 62. Kf1 {[%clk 0:00:21.4]} 62... Kg4
{[%clk 0:00:10.9]} 63. Kf2 {[%clk 0:00:22.1]} 63... Kf5 {[%clk 0:00:09.3]} 64.
g3 {[%clk 0:00:23]} 64... Kg6 {[%clk 0:00:10.1]} 65. Kf3 {[%clk 0:00:23.5]}
65... Kf5 {[%clk 0:00:11]} 66. g4+ {[%clk 0:00:23.9]} 66... Kg6 {[%clk
0:00:11.9]} 67. Kf4 {[%clk 0:00:24.7]} 67... Kf7 {[%clk 0:00:12.5]} 68. g5
{[%clk 0:00:25.1]} 68... Kg6 {[%clk 0:00:12.4]} 69. Kg4 {[%clk 0:00:25.5]} 69...
Kg7 {[%clk 0:00:13.3]} 70. Kf5 {[%clk 0:00:26.4]} 70... Kf7 {[%clk 0:00:13.4]}
71. g6+ {[%clk 0:00:26.8]} 71... Kg7 {[%clk 0:00:14.3]} 72. Kg5 {[%clk
0:00:26.9]} 72... Kg8 {[%clk 0:00:14.4]} 73. Kh6 {[%clk 0:00:27.2]} 73... Kf8
{[%clk 0:00:14.6]} 74. Kh7 {[%clk 0:00:26.7]} 1-0

[Event "*** Titled Tuesday Blitz"]
[Site "Chess.com"]
[Date "2020.11.10"]
[Round "11"]
[White "Fy_Rakotomaharo"]
[Black "maxip32"]
[Result "1-0"]
[WhiteElo "2633"]
[BlackElo "2446"]
[TimeControl "180+1"]
[EndTime "12:14:01 PST"]
[Termination "Fy_Rakotomaharo won on time"]

1. d4 {[%clk 0:02:53.9]} 1... g6 {[%clk 0:02:57.7]} 2. e4 {[%clk 0:02:53.5]}
2... Bg7 {[%clk 0:02:57.1]} 3. c4 {[%clk 0:02:54]} 3... d6 {[%clk 0:02:54.4]} 4.
Nc3 {[%clk 0:02:53.9]} 4... Nf6 {[%clk 0:02:55]} 5. h3 {[%clk 0:02:53.2]} 5...
O-O {[%clk 0:02:54.9]} 6. Be3 {[%clk 0:02:53.8]} 6... Na6 {[%clk 0:02:41.4]} 7.
Nf3 {[%clk 0:02:46.7]} 7... e5 {[%clk 0:02:28.8]} 8. dxe5 {[%clk 0:02:43.4]}
8... dxe5 {[%clk 0:02:29.7]} 9. Be2 {[%clk 0:02:43]} 9... c6 {[%clk 0:02:24.7]}
10. O-O {[%clk 0:02:41.6]} 10... Qe7 {[%clk 0:02:24.7]} 11. a3 {[%clk
0:02:40.2]} 11... Nh5 {[%clk 0:02:07]} 12. Qc2 {[%clk 0:02:26.5]} 12... Nf4
{[%clk 0:02:04.7]} 13. Rfd1 {[%clk 0:02:26.5]} 13... Nxe2+ {[%clk 0:02:03.6]}
14. Qxe2 {[%clk 0:02:26.3]} 14... Be6 {[%clk 0:01:54.3]} 15. Ng5 {[%clk
0:02:18.5]} 15... Bd7 {[%clk 0:01:50.4]} 16. b4 {[%clk 0:02:17.9]} 16... Rfd8
{[%clk 0:01:44.5]} 17. Rd2 {[%clk 0:02:14.7]} 17... h6 {[%clk 0:01:27.3]} 18.
Nf3 {[%clk 0:02:14.6]} 18... Be6 {[%clk 0:01:28.2]} 19. Rad1 {[%clk 0:02:08]}
19... Rxd2 {[%clk 0:01:14.5]} 20. Rxd2 {[%clk 0:01:39.2]} 20... f5 {[%clk
0:01:10.3]} 21. Rd1 {[%clk 0:01:28.7]} 21... Qf7 {[%clk 0:00:59]} 22. c5 {[%clk
0:01:17.9]} 22... Bc4 {[%clk 0:00:58.5]} 23. Qe1 {[%clk 0:01:13.7]} 23... Qe7
{[%clk 0:00:47.1]} 24. Rd6 {[%clk 0:01:03.6]} 24... Kh7 {[%clk 0:00:30]} 25.
exf5 {[%clk 0:00:51.4]} 25... gxf5 {[%clk 0:00:29.7]} 26. Qd1 {[%clk 0:00:44.9]}
26... Be6 {[%clk 0:00:21.1]} 27. Bc1 {[%clk 0:00:21.3]} 27... Nc7 {[%clk
0:00:20.6]} 28. Bb2 {[%clk 0:00:19.9]} 28... Nd5 {[%clk 0:00:20.3]} 29. Nxd5
{[%clk 0:00:20.1]} 29... Bxd5 {[%clk 0:00:20.7]} 30. Qe2 {[%clk 0:00:17.6]}
30... e4 {[%clk 0:00:20.8]} 31. Bxg7 {[%clk 0:00:17.7]} 31... Qxg7 {[%clk
0:00:18.5]} 32. Nh4 {[%clk 0:00:18]} 32... Qg5 {[%clk 0:00:18.1]} 33. g3 {[%clk
0:00:16.7]} 33... Qc1+ {[%clk 0:00:15.7]} 34. Kh2 {[%clk 0:00:16.5]} 34... e3
{[%clk 0:00:15.6]} 35. Rxd5 {[%clk 0:00:13.2]} 35... cxd5 {[%clk 0:00:13.8]} 36.
fxe3 {[%clk 0:00:13.5]} 36... Qb1 {[%clk 0:00:12.7]} 37. Qf2 {[%clk 0:00:12.3]}
37... Rf8 {[%clk 0:00:12]} 38. g4 {[%clk 0:00:12.7]} 38... f4 {[%clk 0:00:10.7]}
39. exf4 {[%clk 0:00:12.4]} 39... Qe4 {[%clk 0:00:10.8]} 40. f5 {[%clk
0:00:10.7]} 40... d4 {[%clk 0:00:11.2]} 41. Ng6 {[%clk 0:00:10.4]} 41... Rd8
{[%clk 0:00:06.8]} 42. Nf4 {[%clk 0:00:09.5]} 42... d3 {[%clk 0:00:07.1]} 43.
Ne6 {[%clk 0:00:10]} 43... d2 {[%clk 0:00:05.5]} 44. Nxd8 {[%clk 0:00:10]} 44...
d1=Q {[%clk 0:00:05.8]} 45. Ne6 {[%clk 0:00:10.8]} 45... Qdh1+ {[%clk
0:00:05.3]} 46. Kg3 {[%clk 0:00:11.2]} 46... Qe5+ {[%clk 0:00:05.4]} 47. Kh4
{[%clk 0:00:11.5]} 47... Qhe1 {[%clk 0:00:03]} 48. Qxe1 {[%clk 0:00:08.6]} 48...
Qxe1+ {[%clk 0:00:03.9]} 49. Kh5 {[%clk 0:00:09.5]} 49... Qg3 {[%clk 0:00:04.2]}
50. h4 {[%clk 0:00:09.9]} 50... Qe5 {[%clk 0:00:03.3]} 51. Nf8+ {[%clk
0:00:06.3]} 51... Kg7 {[%clk 0:00:01.6]} 52. Ng6 {[%clk 0:00:07.2]} 52... Qe8
{[%clk 0:00:01.6]} 53. g5 {[%clk 0:00:07]} 53... hxg5 {[%clk 0:00:02.5]} 54.
hxg5 {[%clk 0:00:07.9]} 54... Qe2+ {[%clk 0:00:03]} 55. Kh4 {[%clk 0:00:07.8]}
55... Qe4+ {[%clk 0:00:03.2]} 56. Kh5 {[%clk 0:00:07.1]} 56... Qxf5 {[%clk
0:00:03.4]} 57. Nh4 {[%clk 0:00:08]} 57... Qh3 {[%clk 0:00:03]} 58. g6 {[%clk
0:00:07.6]} 58... Qg3 {[%clk 0:00:02.3]} 59. Nf5+ {[%clk 0:00:05.7]} 1-0

[Event "*** Titled Tuesday Blitz"]
[Site "Chess.com"]
[Date "2020.11.10"]
[Round "11"]
[White "ViktoriyaTarasova"]
[Black "SergeyShtyka"]
[Result "1/2-1/2"]
[WhiteElo "2259"]
[BlackElo "2344"]
[TimeControl "180+1"]
[EndTime "12:14:13 PST"]
[Termination "Game drawn - insufficient material"]

1. d4 {[%clk 0:03:00.9]} 1... c5 {[%clk 0:02:59.5]} 2. d5 {[%clk 0:03:00.5]}
2... e5 {[%clk 0:02:59.5]} 3. Nc3 {[%clk 0:02:57.2]} 3... d6 {[%clk 0:02:59.9]}
4. e4 {[%clk 0:02:57.8]} 4... Be7 {[%clk 0:02:59.8]} 5. Bb5+ {[%clk 0:02:57.2]}
5... Bd7 {[%clk 0:02:59.5]} 6. a4 {[%clk 0:02:57.8]} 6... a6 {[%clk 0:02:58.5]}
7. Bd3 {[%clk 0:02:57.2]} 7... Bg5 {[%clk 0:02:58]} 8. Nf3 {[%clk 0:02:57.3]}
8... Bxc1 {[%clk 0:02:57.5]} 9. Rxc1 {[%clk 0:02:57.5]} 9... Bg4 {[%clk
0:02:56.2]} 10. h3 {[%clk 0:02:56.2]} 10... Bxf3 {[%clk 0:02:56.6]} 11. Qxf3
{[%clk 0:02:56.5]} 11... Nf6 {[%clk 0:02:57.3]} 12. O-O {[%clk 0:02:56.4]} 12...
O-O {[%clk 0:02:57.5]} 13. Ne2 {[%clk 0:02:55.7]} 13... Nbd7 {[%clk 0:02:54.1]}
14. Ng3 {[%clk 0:02:55.1]} 14... g6 {[%clk 0:02:54.7]} 15. Qe2 {[%clk
0:02:53.8]} 15... Kg7 {[%clk 0:02:49.8]} 16. b3 {[%clk 0:02:53.4]} 16... Rb8
{[%clk 0:02:48.4]} 17. c4 {[%clk 0:02:48.9]} 17... Ne8 {[%clk 0:02:37.9]} 18.
Qd2 {[%clk 0:02:43.8]} 18... f6 {[%clk 0:02:35.9]} 19. Ne2 {[%clk 0:02:43]}
19... Qe7 {[%clk 0:02:31.8]} 20. g3 {[%clk 0:02:43.3]} 20... Rf7 {[%clk
0:02:26.1]} 21. f4 {[%clk 0:02:43.4]} 21... exf4 {[%clk 0:02:25.2]} 22. gxf4
{[%clk 0:02:42.9]} 22... Nc7 {[%clk 0:02:23.9]} 23. Ng3 {[%clk 0:02:39.2]} 23...
b5 {[%clk 0:02:22.5]} 24. axb5 {[%clk 0:02:37.7]} 24... axb5 {[%clk 0:02:22.8]}
25. Kh1 {[%clk 0:02:17.7]} 25... bxc4 {[%clk 0:02:22.4]} 26. bxc4 {[%clk
0:02:16.3]} 26... Rb4 {[%clk 0:02:18.6]} 27. Rg1 {[%clk 0:02:14.7]} 27... Kh8
{[%clk 0:02:16.3]} 28. Rb1 {[%clk 0:02:12]} 28... Na6 {[%clk 0:02:03.1]} 29. Qa2
{[%clk 0:02:03.2]} 29... Rxb1 {[%clk 0:02:01.2]} 30. Qxb1 {[%clk 0:01:57.6]}
30... Nb4 {[%clk 0:02:00.9]} 31. Be2 {[%clk 0:01:51.4]} 31... Rf8 {[%clk
0:01:42.3]} 32. Bg4 {[%clk 0:01:49.8]} 32... Nb6 {[%clk 0:01:35.1]} 33. Qb3
{[%clk 0:01:42.2]} 33... Qa7 {[%clk 0:01:31.1]} 34. e5 {[%clk 0:01:32.8]} 34...
fxe5 {[%clk 0:01:26.3]} 35. fxe5 {[%clk 0:01:31.2]} 35... dxe5 {[%clk
0:01:26.7]} 36. Qc3 {[%clk 0:01:29.3]} 36... Qg7 {[%clk 0:01:23]} 37. Re1 {[%clk
0:01:26.4]} 37... e4 {[%clk 0:01:14.9]} 38. Qxg7+ {[%clk 0:01:22]} 38... Kxg7
{[%clk 0:01:15.8]} 39. Rxe4 {[%clk 0:01:20.1]} 39... h5 {[%clk 0:01:14.1]} 40.
Be2 {[%clk 0:01:11.8]} 40... Nc2 {[%clk 0:01:10.6]} 41. Re6 {[%clk 0:01:03.5]}
41... Nd7 {[%clk 0:01:01.4]} 42. Bd3 {[%clk 0:01:00.9]} 42... Nd4 {[%clk
0:00:50.5]} 43. Rxg6+ {[%clk 0:00:59.3]} 43... Kf7 {[%clk 0:00:50.8]} 44. Nxh5
{[%clk 0:00:57.8]} 44... Ne5 {[%clk 0:00:46.2]} 45. Rg7+ {[%clk 0:00:57.6]}
45... Ke8 {[%clk 0:00:44.6]} 46. Bg6+ {[%clk 0:00:53.3]} 46... Kd8 {[%clk
0:00:42.2]} 47. Be4 {[%clk 0:00:46.1]} 47... Nxc4 {[%clk 0:00:40.1]} 48. Kg2
{[%clk 0:00:37.3]} 48... Nd6 {[%clk 0:00:30.5]} 49. Bh7 {[%clk 0:00:34.4]} 49...
c4 {[%clk 0:00:29.5]} 50. Rg4 {[%clk 0:00:28.4]} 50... Ne2 {[%clk 0:00:17.7]}
51. Ng7 {[%clk 0:00:27.9]} 51... Rf7 {[%clk 0:00:13.5]} 52. Ne6+ {[%clk
0:00:26.6]} 52... Ke7 {[%clk 0:00:12.9]} 53. Nc5 {[%clk 0:00:23.2]} 53... c3
{[%clk 0:00:08.6]} 54. Kh2 {[%clk 0:00:22.2]} 54... Nf5 {[%clk 0:00:05.7]} 55.
Re4+ {[%clk 0:00:20]} 55... Kd6 {[%clk 0:00:05.6]} 56. Rxe2 {[%clk 0:00:17.4]}
56... Kxc5 {[%clk 0:00:05]} 57. Bxf5 {[%clk 0:00:16.3]} 57... Rxf5 {[%clk
0:00:05.3]} 58. d6 {[%clk 0:00:16.3]} 58... Kxd6 {[%clk 0:00:04.8]} 59. Kg3
{[%clk 0:00:16.5]} 59... Kc5 {[%clk 0:00:04]} 60. Kg4 {[%clk 0:00:16.4]} 60...
Rf8 {[%clk 0:00:04]} 61. h4 {[%clk 0:00:16.8]} 61... Kd4 {[%clk 0:00:04.2]} 62.
Kg5 {[%clk 0:00:16.6]} 62... Kd3 {[%clk 0:00:04.6]} 63. Rh2 {[%clk 0:00:16.3]}
63... c2 {[%clk 0:00:04.9]} 64. Rxc2 {[%clk 0:00:15.2]} 64... Kxc2 {[%clk
0:00:05.2]} 65. h5 {[%clk 0:00:15.7]} 65... Kd3 {[%clk 0:00:05.7]} 66. Kg6
{[%clk 0:00:15.6]} 66... Ke4 {[%clk 0:00:06]} 67. h6 {[%clk 0:00:15.9]} 67...
Ke5 {[%clk 0:00:05.1]} 68. Kg7 {[%clk 0:00:15.8]} 68... Ra8 {[%clk 0:00:05.2]}
69. h7 {[%clk 0:00:16.4]} 69... Kf5 {[%clk 0:00:04.7]} 70. h8=Q {[%clk
0:00:15.6]} 70... Rxh8 {[%clk 0:00:04.7]} 71. Kxh8 {[%clk 0:00:15.7]} 1/2-1/2

[Event "*** Titled Tuesday Blitz"]
[Site "Chess.com"]
[Date "2020.11.10"]
[Round "11"]
[White "ErikRonka"]
[Black "szachuspl"]
[Result "1-0"]
[WhiteElo "2407"]
[BlackElo "2505"]
[TimeControl "180+1"]
[EndTime "12:14:18 PST"]
[Termination "ErikRonka won by resignation"]

1. e4 {[%clk 0:03:00.9]} 1... a6 {[%clk 0:02:53.4]} 2. Qh5 {[%clk 0:02:56.3]}
2... Nf6 {[%clk 0:02:48.1]} 3. Qf3 {[%clk 0:02:55.4]} 3... e5 {[%clk 0:02:47]}
4. Bc4 {[%clk 0:02:52.7]} 4... b5 {[%clk 0:02:47.2]} 5. Bb3 {[%clk 0:02:52.5]}
5... Bb7 {[%clk 0:02:47.3]} 6. d3 {[%clk 0:02:51.6]} 6... Be7 {[%clk 0:02:47.1]}
7. Bg5 {[%clk 0:02:44.2]} 7... O-O {[%clk 0:02:46.6]} 8. Nc3 {[%clk 0:02:34.9]}
8... Nc6 {[%clk 0:02:46.9]} 9. Nge2 {[%clk 0:02:33.6]} 9... Na5 {[%clk 0:02:46]}
10. O-O {[%clk 0:02:29.5]} 10... Nxb3 {[%clk 0:02:45.9]} 11. axb3 {[%clk
0:02:29]} 11... d6 {[%clk 0:02:46.6]} 12. d4 {[%clk 0:02:19.3]} 12... h6 {[%clk
0:02:44.2]} 13. Bh4 {[%clk 0:02:13.1]} 13... Nd7 {[%clk 0:02:38.8]} 14. Bxe7
{[%clk 0:01:56.7]} 14... Qxe7 {[%clk 0:02:39.7]} 15. dxe5 {[%clk 0:01:55.1]}
15... dxe5 {[%clk 0:02:36]} 16. Ng3 {[%clk 0:01:54.1]} 16... g6 {[%clk
0:02:35.7]} 17. Rfd1 {[%clk 0:01:40.9]} 17... Nf6 {[%clk 0:02:35.6]} 18. Nf1
{[%clk 0:01:40.1]} 18... Rad8 {[%clk 0:02:33.3]} 19. Ne3 {[%clk 0:01:37.7]}
19... c6 {[%clk 0:02:32.7]} 20. Rxd8 {[%clk 0:01:20.7]} 20... Rxd8 {[%clk
0:02:32.3]} 21. Rd1 {[%clk 0:01:21.3]} 21... Rxd1+ {[%clk 0:02:32.5]} 22. Nexd1
{[%clk 0:01:05.5]} 22... Kg7 {[%clk 0:02:32.5]} 23. Qe3 {[%clk 0:01:04.1]} 23...
c5 {[%clk 0:02:25.7]} 24. f3 {[%clk 0:01:03.4]} 24... Bc6 {[%clk 0:02:25.5]} 25.
Nf2 {[%clk 0:01:02.9]} 25... b4 {[%clk 0:02:25.6]} 26. Ncd1 {[%clk 0:01:00.4]}
26... Nd7 {[%clk 0:02:25.2]} 27. Nd3 {[%clk 0:00:59.7]} 27... Bb5 {[%clk
0:02:25.5]} 28. Nc1 {[%clk 0:00:51.3]} 28... Qd6 {[%clk 0:02:25.6]} 29. Nf2
{[%clk 0:00:50.1]} 29... h5 {[%clk 0:02:24.9]} 30. Ncd3 {[%clk 0:00:49.5]} 30...
a5 {[%clk 0:02:24.5]} 31. g3 {[%clk 0:00:45.2]} 31... c4 {[%clk 0:02:19.5]} 32.
bxc4 {[%clk 0:00:45.1]} 32... Bxc4 {[%clk 0:02:19.5]} 33. f4 {[%clk 0:00:45.3]}
33... a4 {[%clk 0:02:17.5]} 34. b3 {[%clk 0:00:42.3]} 34... Bxd3 {[%clk
0:02:15.1]} 35. Nxd3 {[%clk 0:00:41.6]} 35... a3 {[%clk 0:02:14.8]} 36. Qa7
{[%clk 0:00:20.2]} 36... h4 {[%clk 0:02:02.5]} 37. Qa5 {[%clk 0:00:17.9]} 37...
h3 {[%clk 0:02:00.1]} 38. Qxb4 {[%clk 0:00:15.5]} 38... Qc6 {[%clk 0:01:51.6]}
39. Qxa3 {[%clk 0:00:14.6]} 39... Qxe4 {[%clk 0:01:51.4]} 40. Kf1 {[%clk
0:00:08.1]} 40... Qh1+ {[%clk 0:01:49]} 41. Ke2 {[%clk 0:00:07.3]} 41... Qxh2+
{[%clk 0:01:49.7]} 42. Nf2 {[%clk 0:00:06.3]} 42... Qxg3 {[%clk 0:01:48.1]} 43.
Qd6 {[%clk 0:00:05.5]} 43... h2 {[%clk 0:01:46.9]} 44. Qxd7 {[%clk 0:00:04.2]}
44... Qxf4 {[%clk 0:01:44.1]} 45. Qd3 {[%clk 0:00:03.2]} 45... Qxf2+ {[%clk
0:01:38.6]} 46. Kxf2 {[%clk 0:00:03.3]} 46... h1=Q {[%clk 0:01:39.5]} 47. Qe3
{[%clk 0:00:03.4]} 47... Qh2+ {[%clk 0:01:39]} 48. Ke1 {[%clk 0:00:03.6]} 48...
f5 {[%clk 0:01:35.4]} 49. b4 {[%clk 0:00:03.6]} 49... e4 {[%clk 0:01:34.2]} 50.
b5 {[%clk 0:00:03.5]} 50... Qxc2 {[%clk 0:01:34]} 51. b6 {[%clk 0:00:02.6]}
51... Qb1+ {[%clk 0:01:34.5]} 52. Kf2 {[%clk 0:00:02.4]} 52... Kf6 {[%clk
0:01:34.4]} 53. Qd4+ {[%clk 0:00:02.6]} 53... Kg5 {[%clk 0:01:34.5]} 54. Qe3+
{[%clk 0:00:02.5]} 54... Kh5 {[%clk 0:01:32]} 55. Qc5 {[%clk 0:00:03.4]} 55...
Qb2+ {[%clk 0:01:30.5]} 56. Kf1 {[%clk 0:00:04.3]} 56... Qb3 {[%clk 0:01:22.8]}
57. Kf2 {[%clk 0:00:05.2]} 57... Qf3+ {[%clk 0:01:21.2]} 58. Ke1 {[%clk
0:00:04.7]} 58... e3 {[%clk 0:01:21.6]} 59. Qc2 {[%clk 0:00:02.9]} 59... Qh1+
{[%clk 0:00:56.2]} 60. Ke2 {[%clk 0:00:03.7]} 60... f4 {[%clk 0:00:56.2]} 61.
Kd3 {[%clk 0:00:04.6]} 61... Qd5+ {[%clk 0:00:55.5]} 62. Ke2 {[%clk 0:00:04.4]}
62... g5 {[%clk 0:00:52.9]} 63. Qh7+ {[%clk 0:00:03.7]} 63... Kg4 {[%clk
0:00:52.8]} 64. Qc2 {[%clk 0:00:03.6]} 64... Qb5+ {[%clk 0:00:50.7]} 65. Qd3
{[%clk 0:00:03.1]} 65... Qb2+ {[%clk 0:00:49.3]} 66. Ke1 {[%clk 0:00:02.1]}
66... Qxb6 {[%clk 0:00:49.6]} 67. Kd1 {[%clk 0:00:03]} 67... Qe6 {[%clk
0:00:47.1]} 68. Qe2+ {[%clk 0:00:03.9]} 68... Kf5 {[%clk 0:00:47.2]} 69. Qd3+
{[%clk 0:00:03.9]} 69... Qe4 {[%clk 0:00:47.9]} 70. Qd7+ {[%clk 0:00:04]} 70...
Kg6 {[%clk 0:00:46.8]} 71. Qd6+ {[%clk 0:00:03.2]} 71... Kh5 {[%clk 0:00:46.5]}
72. Qd7 {[%clk 0:00:03]} 72... f3 {[%clk 0:00:44.7]} 73. Qh7+ {[%clk 0:00:01.9]}
73... Kg4 {[%clk 0:00:43.8]} 74. Qxe4+ {[%clk 0:00:01.8]} 74... Kg3 {[%clk
0:00:38.6]} 75. Qxe3 {[%clk 0:00:02.7]} 75... Kg2 {[%clk 0:00:38.2]} 76. Ke1
{[%clk 0:00:03.2]} 76... g4 {[%clk 0:00:38]} 77. Qf2+ {[%clk 0:00:04.1]} 77...
Kh3 {[%clk 0:00:38.1]} 78. Kf1 {[%clk 0:00:04.4]} 78... g3 {[%clk 0:00:34.8]}
79. Qxf3 {[%clk 0:00:04.6]} 79... Kh4 {[%clk 0:00:34.4]} 80. Kg2 {[%clk
0:00:04.5]} 80... Kg5 {[%clk 0:00:34.8]} 81. Qxg3+ {[%clk 0:00:04.6]} 1-0